bitfinex-derivatives/quotes_ETHF0:USTF0_20251213
["timestamp","ask_amount","ask_price","bid_price","bid_amount"]
[1765615601036,0.00244854,3113.7,3113.6,1.46210574]
[1765615601250,0.00244854,3113.7,3113.6,2.52192932]
[1765615601947,0.00244854,3113.7,3113.6,1.46210574]
[1765615604349,0.00244854,3113.7,3113.6,2.53963952]
[1765615609056,4.6833,3114.5,3114.4,1.4584]
[1765615609261,4.6833,3114.5,3114.4,1.4761102]
[1765615609454,3.2078,3114.5,3114.4,1.4761102]
[1765615610161,3.21015306,3114.5,3114.4,1.4761102]
[1765615610358,6.18757664,3114.5,3114.4,0.0177102]
[1765615610559,7.24740022,3114.5,3114.4,0.0177102]
[1765615610759,6.18757664,3114.5,3114.4,0.0177102]
[1765615613063,7.24740022,3114.5,3114.4,0.0177102]
[1765615615562,5.12775306,3114.5,3114.4,0.0177102]
[1765615615763,6.18757664,3114.5,3114.4,0.0177102]
[1765615619967,7.24740022,3114.5,3114.4,0.0177102]
[1765615620664,6.18757664,3114.5,3114.4,0.0177102]
[1765615621871,7.24740022,3114.5,3114.4,0.0177102]
[1765615622566,6.18757664,3114.5,3114.4,0.0177102]
[1765615623669,5.12775306,3114.5,3114.4,0.0177102]
[1765615623871,7.24740022,3114.5,3114.4,0.0177102]
[1765615624967,7.24485386,3114.5,3114.4,0.0177102]
[1765615625172,6.18630346,3114.5,3114.4,0.0177102]
[1765615625576,6.18630346,3114.5,3114.4,0.7398102]
[1765615627570,7.16668025,3114.5,3114.4,0.7398102]
[1765615628668,4.96252985,3114.5,3114.4,1.5092102]
[1765615628879,0.00235306,3114.5,3114.4,1.5092102]
[1765615629171,6.08833559,3114.5,3114.4,0.0177102]
[1765615629967,7.14688599,3114.5,3114.4,0.0177102]
[1765615632477,8.20543639,3114.5,3114.4,0.0177102]
[1765615632968,7.14688599,3114.5,3114.4,0.0177102]
[1765615635880,8.20543639,3114.5,3114.4,0.0177102]
[1765615636178,7.14688599,3114.5,3114.4,0.0177102]
[1765615637276,8.20543639,3114.5,3114.4,0.0177102]
[1765615638179,7.14688599,3114.5,3114.4,0.0177102]
[1765615643384,6.16560346,3114.5,3114.4,0.0177102]
[1765615643787,6.16560346,3114.5,3114.4,0.7398102]
[1765615643986,6.16560346,3114.5,3114.4,1.5092102]
[1765615644178,6.16560346,3114.5,3114.4,0.7398102]
[1765615644380,7.22415386,3114.5,3114.4,0.0177102]
[1765615644888,5.10705306,3114.5,3114.4,0.7922102]
[1765615645088,6.16560346,3114.5,3114.4,0.7922102]
[1765615645580,6.16560346,3114.5,3114.4,0.0177102]
[1765615646888,4.68055306,3114.5,3114.4,1.5058102]
[1765615647188,5.04110346,3114.5,3114.4,1.5058102]
[1765615647385,5.80680346,3114.5,3114.4,1.5058102]
[1765615647590,6.25960346,3114.5,3114.4,1.5058102]
[1765615648396,5.80680346,3114.5,3114.4,1.5058102]
[1765615648691,3.98255306,3114.5,3114.4,1.5058102]
[1765615648891,4.74825306,3114.5,3114.4,1.5058102]
[1765615649583,3.21015306,3114.5,3114.4,1.5058102]
[1765615649983,3.95665306,3114.5,3114.4,1.5058102]
[1765615650184,4.72235306,3114.5,3114.4,1.5058102]
[1765615650895,3.95665306,3114.5,3114.4,1.5058102]
[1765615651088,3.21015306,3114.5,3114.4,1.5058102]
[1765615651289,3.95665306,3114.5,3114.4,1.5058102]
[1765615651494,4.72235306,3114.5,3114.4,1.5058102]
[1765615651793,6.23370346,3114.5,3114.4,0.0177102]
[1765615652192,6.23370346,3114.5,3114.4,0.7332102]
[1765615652387,6.23370346,3114.5,3114.4,1.5058102]
[1765615652587,2.57310346,3114.5,3114.4,1.5058102]
[1765615653598,1.80740346,3114.5,3114.4,1.5058102]
[1765615653895,0.74885306,3114.5,3114.4,1.5058102]
[1765615654096,1.80740346,3114.5,3114.4,1.5058102]
[1765615654296,0.74885306,3114.5,3114.4,1.5058102]
[1765615654894,3.02590346,3114.5,3114.4,0.0177102]
[1765615655093,6.23370346,3114.5,3114.4,0.0177102]
[1765615655891,6.23360415,3114.5,3114.4,0.0177102]
[1765615657098,6.23360415,3114.5,3114.4,0.7332102]
[1765615657396,6.23360415,3114.5,3114.4,1.5058102]
[1765615657699,6.23360415,3114.5,3114.4,0.7332102]
[1765615658387,6.23360415,3114.5,3114.4,1.5058102]
[1765615660701,5.78080415,3114.5,3114.4,1.5058102]
[1765615660897,3.95665306,3114.5,3114.4,1.5058102]
[1765615661495,0.74885306,3114.5,3114.4,1.5058102]
[1765615662303,0.00235306,3114.5,3114.4,1.5058102]
[1765615662909,0.00481688,3114.8,3114.7,1.4881]
[1765615663299,0.00481688,3114.8,3114.7,1.5058102]
[1765615663901,0.00893381,3114.8,3114.7,1.5058102]
[1765615664807,0.00893381,3114.8,3114.7,2.56389879]
[1765615665398,0.00893381,3114.8,3114.7,43.36389879]
[1765615666206,0.00893381,3114.8,3114.7,43.52440879]
[1765615667303,4.72,3115.4,3115.3,1.4881]
[1765615667504,1.5122,3115.1,3115.0,1.9197]
[1765615668105,0.7465,3115.1,3115.0,1.9197]
[1765615668311,1.51598802,3115.1,3115.0,1.9374102]
[1765615674805,0.00378802,3115.1,3115.0,1.9374102]
[1765615675011,1.43408802,3115.1,3115.0,1.9374102]
[1765615675212,1.43408802,3115.1,3115.0,1.5058102]
[1765615675614,1.43408802,3115.1,3115.0,0.0177102]
[1765615675813,2.49217661,3115.1,3115.0,0.0177102]
[1765615676209,2.49217661,3115.1,3115.0,0.7203102]
[1765615677023,2.49217661,3115.1,3115.0,1.4457102]
[1765615678016,2.49217661,3115.1,3115.0,0.7203102]
[1765615678219,2.49217661,3115.1,3115.0,1.4457102]
[1765615678610,2.49217661,3115.1,3115.0,0.7203102]
[1765615680318,0.00378802,3115.1,3115.0,1.8798102]
[1765615680617,1.43408802,3115.1,3115.0,0.7203102]
[1765615681007,1.43408802,3115.1,3115.0,1.4457102]
[1765615681211,1.43408802,3115.1,3115.0,0.7203102]
[1765615682418,1.43408802,3115.1,3115.0,1.4457102]
[1765615682621,0.00378802,3115.1,3115.0,1.8798102]
[1765615682817,3.2109013,3115.4,3115.3,1.428]
[1765615683320,3.2109013,3115.4,3115.3,1.4457102]
[1765615683914,3.21486523,3115.4,3115.3,1.4457102]
[1765615684921,3.94226523,3115.4,3115.3,1.4457102]
[1765615685619,3.21486523,3115.4,3115.3,1.4457102]
[1765615687422,3.94226523,3115.4,3115.3,1.4457102]
[1765615689925,3.21486523,3115.4,3115.3,1.4457102]
[1765615690125,3.21486523,3115.4,3115.3,1.6061902]
[1765615690320,0.00706523,3115.4,3115.3,1.6061902]
[1765615691625,0.00706523,3115.4,3115.3,2.66427879]
[1765615693424,0.00706523,3115.4,3115.3,1.6061902]
[1765615693619,0.00706523,3115.4,3115.3,2.66427879]
[1765615694821,1.43736523,3115.4,3115.3,1.6061902]
[1765615695226,1.43736523,3115.4,3115.3,0.8807902]
[1765615695615,1.43736523,3115.4,3115.3,1.6061902]
[1765615698324,0.73446523,3115.4,3115.3,1.6061902]
[1765615699029,1.43736523,3115.4,3115.3,0.1781902]
[1765615699430,1.43736523,3115.4,3115.3,0.8807902]
[1765615700030,1.43736523,3115.4,3115.3,1.6061902]
[1765615700230,0.00706523,3115.4,3115.3,1.6061902]
[1765615700439,1.43736523,3115.4,3115.3,1.6061902]
[1765615701130,1.43736523,3115.4,3115.3,0.8807902]
[1765615701332,1.43736523,3115.4,3115.3,0.1781902]
[1765615701734,1.43736523,3115.4,3115.3,1.6061902]
[1765615702122,1.43736523,3115.4,3115.3,0.8807902]
[1765615702729,1.43736523,3115.4,3115.3,0.1781902]
[1765615704029,2.49489912,3115.4,3115.3,0.1781902]
[1765615704530,2.49489912,3115.4,3115.3,0.8807902]
[1765615705233,0.00706523,3115.4,3115.3,2.65142409]
[1765615706135,0.74926523,3115.4,3115.3,1.5938902]
[1765615706937,0.00706523,3115.4,3115.3,1.5938902]
[1765615708541,1.48326523,3115.4,3115.3,1.5938902]
[1765615709234,0.74926523,3115.4,3115.3,1.5938902]
[1765615709534,0.00706523,3115.4,3115.3,1.5938902]
[1765615710038,0.74926523,3115.4,3115.3,1.5938902]
[1765615710240,1.48326523,3115.4,3115.3,1.5938902]
[1765615711144,0.74926523,3115.4,3115.3,1.5938902]
[1765615711343,1.48326523,3115.4,3115.3,1.5938902]
[1765615713749,1.48326523,3115.4,3115.3,0.1781902]
[1765615713948,1.48326523,3115.4,3115.3,1.6624902]
[1765615715542,1.48326523,3115.4,3115.3,0.1781902]
[1765615717851,2.54094672,3115.4,3115.3,0.1781902]
[1765615718954,1.48326523,3115.4,3115.3,1.6624902]
[1765615719157,1.48326523,3115.4,3115.3,0.9493902]
[1765615719653,1.48326523,3115.4,3115.3,0.1781902]
[1765615719857,2.54094672,3115.4,3115.3,0.1781902]
[1765615720752,1.48326523,3115.4,3115.3,0.1781902]
[1765615720953,2.54094672,3115.4,3115.3,0.1781902]
[1765615721853,1.48326523,3115.4,3115.3,0.1781902]
[1765615722054,2.54094672,3115.4,3115.3,0.1781902]
[1765615722552,2.54094672,3115.4,3115.3,0.0177102]
[1765615722956,1.4762,3115.2,3115.1,3.2078]
[1765615723156,2.53388149,3115.2,3115.1,3.2078]
[1765615724257,2.53388149,3115.2,3115.1,3.979]
[1765615724856,1.4762,3115.2,3115.1,4.6921]
[1765615725056,0.7422,3115.2,3115.1,4.6921]
[1765615725250,1.4762,3115.2,3115.1,4.6921]
[1765615725853,1.4762,3115.2,3115.1,3.979]
[1765615726357,1.4762,3115.2,3115.1,0.7712]
[1765615726968,1.4762,3115.2,3115.1,1.4843]
[1765615732082,0.7422,3115.2,3115.1,1.4843]
[1765615732476,1.4762,3115.2,3115.1,1.4843]
[1765615735486,0.00706523,3115.4,3115.3,1.4993]
[1765615736275,1.47636523,3115.4,3115.3,1.4993]
[1765615737786,0.71826523,3115.4,3115.3,1.4993]
[1765615737987,0.00706523,3115.4,3115.3,1.4993]
[1765615738188,0.71826523,3115.4,3115.3,1.4993]
[1765615738389,0.00706523,3115.4,3115.3,1.4993]
[1765615739890,0.00706523,3115.4,3115.3,1.65978]
[1765615742393,1.4693,3116.2,3116.1,1.4993]
[1765615743397,2.53106173,3116.2,3116.1,1.50325556]
[1765615744982,1.47335286,3116.2,3116.1,1.50325556]
[1765615745388,1.47335286,3116.2,3116.1,0.77555556]
[1765615745597,1.47335286,3116.2,3116.1,0.00395556]
[1765615747595,1.47335286,3116.2,3116.1,0.77555556]
[1765615747797,1.47335286,3116.2,3116.1,0.00395556]
[1765615751195,2.53106173,3116.2,3116.1,0.00395556]
[1765615755295,1.47335286,3116.2,3116.1,0.00395556]
[1765615755496,2.53106173,3116.2,3116.1,0.00395556]
[1765615755994,1.4693,3115.8,3115.7,3.2078]
[1765615756195,3.58471774,3115.8,3115.7,3.2078]
[1765615757102,2.52700887,3115.8,3115.7,3.21036397]
[1765615757491,3.58471774,3115.8,3115.7,3.21036397]
[1765615760207,3.58471774,3115.8,3115.7,0.00256397]
[1765615762500,0.7668,3114.9,3114.8,4.694]
[1765615762705,2.55650887,3114.9,3114.8,4.694]
[1765615762906,0.732,3114.9,3114.8,4.694]
[1765615763103,1.4988,3114.9,3114.8,4.694]
[1765615763305,0.732,3114.9,3114.8,4.694]
[1765615763508,2.55650887,3115.1,3115.0,1.9362]
[1765615765408,1.4988,3115.1,3115.0,1.9362]
[1765615766408,0.732,3115.1,3115.0,1.9362]
[1765615766712,2.52200887,3115.4,3115.3,1.5285]
[1765615767211,2.52200887,3115.4,3115.3,0.759]
[1765615770006,0.7626,3115.1,3115.0,1.9785]
[1765615773116,1.4643,3115.1,3115.0,1.9785]
[1765615773616,0.7626,3115.1,3115.0,1.9785]
[1765615775720,2.52207504,3115.3,3115.2,1.5285]
[1765615775921,1.82037504,3115.3,3115.2,1.5285]
[1765615776309,2.52207504,3115.3,3115.2,1.5285]
[1765615777417,0.7626,3115.3,3115.2,1.5285]
[1765615778325,4.6721,3115.6,3115.5,1.5285]
[1765615780130,0.4343,3116.0,3115.9,0.759]
[1765615780131,5.1064,3116.0,3115.9,0.759]
[1765615780333,0.7626,3115.6,3115.5,2.15237]
[1765615780832,5.1064,3116.0,3115.9,1.5285]
[1765615781338,4.6721,3116.0,3115.9,1.5285]
[1765615783735,0.00481688,3116.1,3116.0,1.9919]
[1765615784533,0.76741688,3116.1,3116.0,1.9919]
[1765615785029,1.46911688,3116.1,3116.0,1.9919]
[1765615785929,0.76741688,3116.1,3116.0,1.9919]
[1765615786837,0.00481688,3116.1,3116.0,1.9919]
[1765615794941,1.9112,3117.0,3116.9,0.7599]
[1765615795639,1.4584,3117.0,3116.9,1.4981]
[1765615795840,1.46242704,3117.0,3116.9,1.4981]
[1765615796144,1.46242704,3117.0,3116.9,0.7599]
[1765615796343,1.89732704,3117.0,3116.9,0.7599]
[1765615797744,1.4584,3116.7,3116.6,1.50291688]
[1765615800542,0.7053,3116.7,3116.6,1.50291688]
[1765615800742,0.00402704,3117.0,3116.9,1.4981]
[1765615800940,0.00402704,3117.0,3116.9,2.55575405]
[1765615801137,0.00402704,3117.0,3116.9,5.76355405]
[1765615801343,0.00481688,3117.3,3117.2,1.4981]
[1765615801543,0.4349,3118.5,3117.5,0.4285]
[1765615801848,1.1402,3118.5,3118.3,3.2078]
[1765615802048,0.7053,3118.4,3118.3,4.26545405]
[1765615802247,1.8933,3118.5,3118.3,4.26545405]
[1765615802542,1.89574514,3118.5,3118.3,4.26774366]
[1765615803244,0.43734514,3118.5,3118.3,4.26774366]
[1765615804252,1.4584,3118.4,3118.3,3.21008961]
[1765615804642,1.4584,3118.4,3117.9,44.0078]
[1765615804643,1.8933,3118.0,3117.9,44.0078]
[1765615804951,1.4584,3117.6,3117.5,3.2078]
[1765615805246,2.51605405,3117.6,3117.5,3.2078]
[1765615805448,0.4349,3118.0,3117.5,3.2078]
[1765615805647,1.1402,3118.0,3117.5,3.21144251]
[1765615805852,1.4584,3117.6,3117.5,3.21144251]
[1765615808648,1.8933,3118.0,3117.5,4.26745244]
[1765615808851,1.1402,3118.0,3117.8,1.05600993]
[1765615809050,0.43734514,3118.5,3117.9,3.2078]
[1765615809253,0.43734514,3118.5,3118.3,1.05600993]
[1765615809457,0.43734514,3118.5,3118.4,3.2078]
[1765615810158,1.89574514,3118.5,3118.4,3.2078]
[1765615816361,1.14264514,3118.5,3118.4,3.2078]
[1765615816661,1.89574514,3118.5,3118.4,3.2078]
[1765615816857,0.43734514,3118.5,3118.4,3.2078]
[1765615817056,1.14264514,3118.5,3118.4,3.2078]
[1765615817254,1.89574514,3118.5,3118.4,3.2078]
[1765615820159,0.43734514,3118.5,3118.4,3.2078]
[1765615820357,1.85994514,3118.5,3118.4,3.2078]
[1765615821468,0.43734514,3118.5,3118.4,3.2078]
[1765615825763,13.8147,3119.5,3118.4,3.2078]
[1765615825963,13.8147,3119.5,3118.9,3.2078]
[1765615826162,3.6427,3119.5,3118.9,3.2078]
[1765615826770,0.43859532,3119.0,3118.9,3.2078]
[1765615826970,1.17639532,3119.0,3118.9,3.2078]
[1765615827170,1.92109532,3119.0,3118.9,3.2078]
[1765615827472,0.00369532,3119.0,3118.9,3.2078]
[1765615827768,0.00369532,3119.0,3118.9,44.0078]
[1765615829876,0.00369532,3119.0,3118.9,45.06263062]
[1765615830164,0.00369532,3119.0,3118.9,45.22293062]
[1765615830373,0.42689532,3119.0,3118.9,45.22293062]
[1765615830766,1.90939532,3119.0,3118.9,44.1681]
[1765615831571,1.90939532,3119.0,3118.9,3.3681]
[1765615832463,0.42689532,3119.0,3118.9,3.3681]
[1765615832864,1.90939532,3119.0,3118.9,3.3681]
[1765615833875,1.9057,3118.5,3118.4,3.2078]
[1765615836978,0.4232,3118.5,3118.4,4.26263062]
[1765615837581,0.4232,3118.5,3118.4,3.2078]
[1765615837878,1.161,3118.5,3118.4,3.2078]
[1765615838666,0.4232,3118.5,3118.4,3.2078]
[1765615839868,1.161,3118.5,3118.4,3.2078]
[1765615840067,0.4232,3118.5,3118.4,3.2078]
[1765615841179,1.161,3118.5,3118.4,3.2078]
[1765615842274,0.4232,3118.5,3118.4,3.2078]
[1765615844084,2.96112933,3118.5,3118.4,3.2078]
[1765615850082,1.9057,3118.5,3118.4,3.2078]
[1765615850298,0.4232,3118.5,3118.4,3.2078]
[1765615850586,2.96112933,3118.5,3118.4,3.2078]
[1765615852793,0.4232,3118.5,3118.4,3.2078]
[1765615852982,1.9057,3118.5,3118.4,3.2078]
[1765615853184,1.161,3118.5,3118.4,3.2078]
[1765615853795,1.9057,3118.5,3118.4,3.2078]
[1765615854389,2.96112933,3118.5,3118.4,3.2078]
[1765615855600,1.47862933,3118.5,3118.4,3.2078]
[1765615855805,0.4232,3118.5,3118.4,3.2078]
[1765615856495,1.1541,3118.5,3118.4,3.2078]
[1765615856803,1.86,3118.5,3118.4,3.2078]
[1765615861594,0.4232,3118.5,3118.4,3.2078]
[1765615862994,1.1541,3118.5,3118.4,3.2078]
[1765615863201,1.86,3118.5,3118.4,3.2078]
[1765615863505,2.91542933,3118.5,3118.4,3.2078]
[1765615865002,3.97085866,3118.5,3118.4,3.2078]
[1765615865306,2.91542933,3118.5,3118.4,3.2078]
[1765615866408,1.4368,3118.2,3118.1,0.00481688]
[1765615866612,2.49222933,3118.2,3118.1,0.00481688]
[1765615867905,1.8832,3118.0,3117.9,2.86536599]
[1765615868105,1.4368,3117.6,3117.4,3.2078]
[1765615868406,2.49222933,3117.6,3117.4,3.2078]
[1765615870607,2.49222933,3117.6,3117.2,0.00481688]
[1765615870608,1.4368,3117.3,3117.2,0.00481688]
[1765615870810,2.49222933,3117.3,3117.2,0.00481688]
[1765615871208,1.4368,3117.3,3117.2,0.00481688]
[1765615871408,2.49222933,3117.3,3117.2,0.73401688]
[1765615871610,2.49222933,3117.3,3117.2,0.73666017]
[1765615871813,2.49222933,3117.3,3117.2,0.00746017]
[1765615874220,0.7309,3116.3,3116.2,2.55462933]
[1765615874713,1.4368,3116.6,3116.5,0.7292]
[1765615874915,1.4368,3116.6,3116.3,0.7292]
[1765615874916,1.4368,3116.4,3116.3,0.7292]
[1765615875119,1.4368,3116.4,3116.3,1.4992]
[1765615875319,1.43926109,3116.4,3116.3,1.50247627]
[1765615876214,1.43926109,3116.4,3116.3,0.00327627]
[1765615876516,4.64706109,3116.4,3116.3,0.73247627]
[1765615877214,5.70249042,3116.4,3116.3,0.00327627]
[1765615877613,6.76163569,3116.4,3116.3,0.00327627]
[1765615877810,5.70434839,3116.4,3116.3,0.00327627]
[1765615879807,4.64706109,3116.4,3116.3,1.50247627]
[1765615880007,5.70434839,3116.4,3116.3,1.50247627]
[1765615880412,5.70434839,3116.4,3116.3,0.73247627]
[1765615880915,5.70434839,3116.4,3116.3,0.74777627]
[1765615881312,6.76163569,3116.4,3116.3,0.00327627]
[1765615881512,5.70434839,3116.4,3116.3,0.00327627]
[1765615883412,5.70434839,3116.4,3116.3,0.74777627]
[1765615884322,5.70434839,3116.4,3116.3,0.00327627]
[1765615886016,5.70434839,3116.4,3116.3,0.74777627]
[1765615886218,5.70434839,3116.4,3116.3,1.45167627]
[1765615886918,5.70434839,3116.4,3116.3,0.74777627]
[1765615887113,5.70434839,3116.4,3116.3,0.00327627]
[1765615887717,6.76163569,3116.4,3116.3,0.00327627]
[1765615888221,6.76163569,3116.4,3116.0,0.00481688]
[1765615888222,1.4876,3115.7,3115.6,1.423]
[1765615888426,5.7526873,3115.7,3115.6,0.7191]
[1765615889330,5.7526873,3115.7,3115.6,0.7219213]
[1765615892528,5.7526873,3115.7,3115.6,1.4258213]
[1765615892825,3.2078,3115.7,3115.6,2.4831086]
[1765615893021,4.6954,3115.7,3115.6,1.4258213]
[1765615893227,4.6954,3115.7,3115.6,0.7219213]
[1765615893624,4.6954,3115.7,3115.6,1.4258213]
[1765615894527,4.6954,3115.7,3115.6,0.7219213]
[1765615895032,4.6954,3115.7,3115.6,1.4258213]
[1765615895230,4.6954,3115.7,3115.6,0.7219213]
[1765615896030,5.7526873,3115.7,3115.6,0.0028213]
[1765615896225,4.6954,3115.7,3115.6,0.0028213]
[1765615900038,4.6954,3115.7,3115.6,0.7219213]
[1765615900635,4.6954,3115.7,3115.6,0.0028213]
[1765615901429,4.6954,3115.7,3115.6,0.7219213]
[1765615902439,4.6954,3115.7,3115.6,0.0028213]
[1765615904441,4.6954,3115.7,3115.6,0.7219213]
[1765615904833,4.6954,3115.7,3115.6,0.0028213]
[1765615905029,4.6954,3115.7,3115.6,0.7219213]
[1765615905840,4.6954,3115.7,3115.6,0.0028213]
[1765615906834,4.6954,3115.7,3115.6,0.7219213]
[1765615907841,3.2078,3115.7,3115.6,1.4258213]
[1765615908035,3.2078,3115.7,3115.6,1.5862813]
[1765615908240,3.9681,3115.7,3115.6,1.5862813]
[1765615908743,3.2078,3115.7,3115.6,1.5862813]
[1765615908933,3.2078,3115.7,3115.6,2.64371859]
[1765615913339,3.2078,3115.7,3115.6,2.64337876]
[1765615915248,5.15041688,3116.0,3115.9,1.4247]
[1765615915749,5.15041688,3116.0,3115.9,0.7191]
[1765615916246,3.21261688,3116.0,3115.9,2.64224746]
[1765615917037,3.92261688,3116.0,3115.9,2.64224746]
[1765615917641,4.67521688,3116.0,3115.9,2.64224746]
[1765615919840,5.10011688,3116.0,3115.9,0.16045]
[1765615923356,3.21261688,3116.0,3115.9,1.63385]
[1765615924161,4.67521688,3116.0,3115.9,42.43385]
[1765615924362,3.92261688,3116.0,3115.9,42.43385]
[1765615924554,3.21261688,3116.0,3115.9,42.43385]
[1765615925265,0.00481688,3116.0,3115.9,42.43385]
[1765615926751,0.71481688,3116.0,3115.9,42.43385]
[1765615931567,0.00481688,3116.0,3115.9,42.43385]
[1765615932667,1.46506109,3116.4,3116.3,1.63383]
[1765615932866,0.71246109,3116.4,3116.3,1.63383]
[1765615933067,0.00246109,3116.4,3116.3,1.63383]
[1765615933766,0.71246109,3116.4,3116.3,1.63383]
[1765615933967,1.46506109,3116.4,3116.3,0.92823]
[1765615934771,1.46506109,3116.4,3116.3,1.63383]
[1765615937072,1.46506109,3116.4,3116.3,0.16043]
[1765615937460,1.46506109,3116.4,3116.3,1.63383]
[1765615937663,0.71246109,3116.4,3116.3,1.63383]
[1765615937862,0.00246109,3116.4,3116.3,1.63383]
[1765615938073,0.00246109,3116.4,3116.3,2.69092746]
[1765615942569,1.53056109,3116.4,3116.3,0.16043]
[1765615942769,1.53056109,3116.4,3116.3,2.61982746]
[1765615943778,0.76336109,3116.4,3116.3,2.61982746]
[1765615944773,0.00246109,3116.4,3116.3,2.61982746]
[1765615948975,0.00246109,3116.4,3116.3,2.61920644]
[1765615955572,1.50186109,3116.4,3116.3,0.16043]
[1765615956076,4.70966109,3116.4,3116.3,0.16043]
[1765615956866,3.98216109,3116.4,3116.3,1.61233]
[1765615957072,4.70966109,3116.4,3116.3,1.61233]
[1765615958676,3.98216109,3116.4,3116.3,1.61233]
[1765615959177,0.00246109,3116.4,3116.3,1.61233]
[1765615959771,0.77436109,3116.4,3116.3,1.61233]
[1765615960081,1.50186109,3116.4,3116.3,1.61233]
[1765615960379,1.50186109,3116.4,3116.3,0.16043]
[1765615960572,1.50186109,3116.4,3116.3,0.86823]
[1765615960968,1.50186109,3116.4,3116.3,1.61233]
[1765615962075,1.50186109,3116.4,3116.3,2.66909032]
[1765615962580,1.50186109,3116.4,3116.3,1.92499032]
[1765615962779,4.70966109,3116.4,3116.3,2.66909032]
[1765615965780,4.70966109,3116.4,3116.3,1.92499032]
[1765615966382,4.70966109,3116.4,3116.3,0.16043]
[1765615966877,4.70966109,3116.4,3116.3,0.86823]
[1765615967180,4.70966109,3116.4,3116.3,0.16043]
[1765615967681,4.70966109,3116.4,3116.3,0.86823]
[1765615967982,4.70966109,3116.4,3116.3,0.16043]
[1765615968281,4.70966109,3116.4,3116.3,0.86823]
[1765615969682,4.70966109,3116.4,3116.3,1.61233]
[1765615970986,4.70966109,3116.4,3116.3,2.66909032]
[1765615972086,3.98216109,3116.4,3116.3,2.66909032]
[1765615972286,3.21026109,3116.4,3116.3,2.66909032]
[1765615974887,3.98216109,3116.4,3116.3,2.66909032]
[1765615976489,0.77436109,3116.4,3116.3,2.66909032]
[1765615977489,0.00246109,3116.4,3116.3,2.66909032]
[1765615978688,0.75996109,3116.4,3116.3,2.66909032]
[1765615979388,0.00246109,3116.4,3116.3,2.66909032]
[1765615980292,0.00246109,3116.4,3116.3,1.61233]
[1765615980490,0.00246109,3116.4,3116.3,3.72585064]
[1765615981184,0.00246109,3116.4,3116.3,18.63985064]
[1765615984990,1.5079,3117.2,3117.1,1.59928]
[1765615985195,1.5079,3117.2,3117.1,2.65604032]
[1765615985989,1.51093409,3117.2,3117.1,2.65604032]
[1765615986194,1.51093409,3117.2,3117.1,0.16038]
[1765615986591,7.51093409,3117.2,3117.1,0.16038]
[1765615986791,1.5079,3116.9,3116.8,1.688e-05]
[1765615986996,1.9502,3116.5,3116.4,3.2078]
[1765615987794,1.9502,3116.5,3116.3,0.16043]
[1765615987795,1.5079,3116.4,3116.3,0.16043]
[1765615988787,1.5079,3116.4,3116.3,1.59933]
[1765615988993,0.4423,3116.5,3116.4,0.16042]
[1765615988994,0.7575,3116.5,3116.4,0.16042]
[1765615989190,0.7575,3116.5,3116.4,2.65562378]
[1765615989598,1.5079,3116.5,3116.4,2.65562378]
[1765615990398,1.9502,3116.5,3116.4,2.65562378]
[1765615990700,1.9502,3116.5,3116.4,1.92842378]
[1765615990999,1.9502,3116.5,3116.4,0.16042]
[1765615993005,1.9502,3116.5,3116.4,1.59932]
[1765615993198,1.9502,3116.5,3116.4,0.87212]
[1765615994203,1.9502,3116.5,3116.4,1.59932]
[1765615994390,1.9502,3116.5,3116.4,1.92842378]
[1765615996205,1.9502,3116.5,3116.4,2.65562378]
[1765615996404,1.9502,3116.5,3116.4,1.92842378]
[1765615996607,1.9502,3116.5,3116.4,0.16042]
[1765615996807,3.00650378,3116.5,3116.4,0.16042]
[1765615997509,1.9502,3116.5,3116.4,0.16042]
[1765615999603,3.00650378,3116.5,3116.4,0.16042]
[1765616000714,1.9502,3116.5,3116.4,0.16042]
[1765616004013,3.00650378,3116.5,3116.4,0.16042]
[1765616007014,1.9502,3116.5,3116.4,0.16042]
[1765616013433,1.9502,3116.5,3116.4,0.90912]
[1765616014426,1.9502,3116.5,3116.4,1.67182]
[1765616014627,1.9502,3116.5,3116.4,0.16042]
[1765616019830,1.4328,3116.1,3116.0,0.75351688]
[1765616023734,1.4328,3116.1,3116.0,0.91395688]
[1765616026235,1.4328,3116.1,3116.0,1.67665688]
[1765616028035,1.4328,3116.1,3116.0,0.91395688]
[1765616031443,1.4328,3116.1,3116.0,0.16525688]
[1765616031644,1.4328,3116.1,3116.0,0.91395688]
[1765616033744,1.4328,3116.1,3116.0,1.67665688]
[1765616034039,3.9165,3116.6,3116.5,1.67182]
[1765616034241,3.2078,3116.6,3116.5,3.17809056]
[1765616034447,3.9165,3116.6,3116.5,3.17809056]
[1765616034742,0.7241,3116.7,3116.6,1.62721]
[1765616036948,1.4474,3116.7,3116.6,1.62721]
[1765616038548,1.4474,3116.7,3116.6,2.68428056]
[1765616041248,1.8897,3117.0,3116.9,1.6272]
[1765616041544,0.7241,3117.0,3116.9,2.68427056]
[1765616042146,1.891,3117.0,3116.9,1.93357056]
[1765616042345,1.891,3117.0,3116.9,1.6272]
[1765616042540,1.891,3117.0,3116.9,0.8765]
[1765616043348,1.891,3117.0,3116.9,1.6272]
[1765616045157,1.4474,3117.0,3116.9,1.6272]
[1765616045358,0.7241,3117.0,3116.9,1.6272]
[1765616046553,1.891,3117.0,3116.9,1.6272]
[1765616047557,1.891,3117.0,3116.9,0.8765]
[1765616047960,1.891,3117.0,3116.9,0.1604]
[1765616048655,1.891,3117.0,3116.9,0.8765]
[1765616049567,1.891,3117.0,3116.9,0.1604]
[1765616050254,1.4474,3116.4,3116.3,0.16043]
[1765616055754,1.4474,3116.4,3116.3,0.87653]
[1765616055955,1.1677,3116.5,3116.4,1.62722]
[1765616056155,0.7241,3116.5,3116.4,1.62722]
[1765616056362,1.891,3116.5,3116.4,0.16042]
[1765616069370,1.4375,3116.1,3116.0,0.00481688]
[1765616072678,1.4375,3116.1,3116.0,0.75921688]
[1765616076078,0.723,3116.1,3116.0,1.46541688]
[1765616076673,1.4375,3116.1,3116.0,1.46541688]
[1765616077172,0.723,3116.1,3116.0,1.46541688]
[1765616077380,3.9308,3116.2,3116.1,1.4606]
[1765616077677,3.9308,3116.2,3116.1,2.67799911]
[1765616077871,3.2078,3116.2,3116.1,2.67799911]
[1765616078481,3.9308,3116.2,3116.1,2.67799911]
[1765616078681,4.6453,3116.2,3116.1,2.67799911]
[1765616080674,3.9308,3116.2,3116.1,2.67799911]
[1765616080974,3.2078,3116.2,3116.1,2.67799911]
[1765616081374,4.6453,3116.7,3116.6,1.4606]
[1765616081675,4.6453,3116.7,3116.6,2.51755911]